[Event "57th Biel Festival MTO 2024"]
[White "Amartuvshin,Ganzorig"]
[Black "Altantuya,Boldbaatar"]
[Site "Biel"]
[Round "1.29"]
[Annotator "TA"]
[Result "1-0"]
[Date "2024.07.15"]
[WhiteElo "2411"]
[BlackElo "2107"]
[PlyCount "103"]
[TimeControl "60"]

{[%evp 21,103,11,6,4,14,2,7,0,18,18,29,20,13,10,10,5,24,0,16,0,39,0,36,0,31,42,45,52,67,23,24,26,17,32,31,27,32,31,26,21,23,21,15,0,0,0,0,0,0,0,24,30,25,23,43,37,64,79,75,26,83,8,47,8,215,0,29,0,0,-8,0,0,591,597,592,547,602,602,560,597,595,-185,574,574]} 1. d4 {[%emt 0:0:3]} Nf6 {[%emt 0:0:15]} 2. c4 {[%emt 0:0:14]} e6 {[%emt 0:0:10]} 3. Nf3 {[%emt 0:0:10]} b6 {[%emt 0:0:27]} 4. g3 {[%emt 0:0:31]} Bb7 {[%emt 0:2:54]} 5. Bg2 {[%emt 0:0:7]} Be7 {[%emt 0:0:7]} 6. O-O {[%emt 0:0:7]} O-O {[%emt 0:0:6]} 7. Nc3 {[%emt 0:0:11]} Ne4 {[%emt 0:0:28]} 8. Bd2 {[%emt 0:0:14]} d5 {[%emt 0:2:27]} 9. cxd5 {[%emt 0:13:57]} exd5 {[%emt 0:0:20]} 10. Rc1 {[%emt 0:2:23]} Nd7 {[%emt 0:13:1]} 11. Bf4 {[%emt 0:0:39]} c5 {[%emt 0:7:32]} 12. dxc5 {[%emt 0:1:13] aiming for c6.} Nxc3 {[%emt 0:0:40]} 13. Rxc3 {[%emt 0:0:27] c6 would now be deadly.} bxc5 {[%emt 0:1:13]} 14. Ne5 {[%emt 0:3:56] The position is equal.} g5 {[%emt 0:16:5]} 15. Nxd7 {[%emt 0:3:39]} Qxd7 {[%emt 0:0:9]} 16. Bc1 {[%emt 0:0:18]} d4 {[%emt 0:2:15]} 17. Bxb7 {[%emt 0:0:18]} Qxb7 {[%emt 0:0:20]} 18. Rc2 {[%emt 0:0:15]} a5 {[%emt 0:10:18]} 19. Qd3 {[%emt 0:3:28]} Qa6 {[%emt 0:10:31]} 20. Rc4 {[%emt 0:1:5]} Qg6 {[%emt 0:5:9]} 21. Qd1 {[%emt 0:11:17]} Qe6 {[%emt 0:10:12]} 22. Qd3 {[%emt 0:0:7]} Qg6 {[%emt 0:0:20]} 23. b3 {[%emt 0:2:24]} a4 {[%emt 0:9:16]} 24. bxa4 {[%emt 0:0:16]} (24. Rxa4 Rxa4 25. bxa4 Ra8 $15 )Ra6 {[%emt 0:1:36]} 25. Qb3 {[%emt 0:2:14]} Qh5 {[%emt 0:4:0]} 26. f3 {[%emt 0:5:49]} Rh6 {[%emt 0:1:27]} 27. Rf2 {[%emt 0:1:57]} Bd6 {[%emt 0:0:13][%cal Od6g3]} 28. Rg2 {[%emt 0:2:19]} Rb8 {[%emt 0:5:7]} 29. Qd3 {[%emt 0:0:14]} Re6 {[%emt 0:0:50]} 30. a5 {[%emt 0:2:5]} Be7 {[%emt 0:3:6]} 31. Rf2 {[%emt 0:7:7]} Qg6 {[%emt 0:2:16]} 32. Kg2 {[%emt 0:0:16]} Ra6 {[%emt 0:1:51]} 33. Bd2 {[%emt 0:0:20]} Rb2 {[%emt 0:0:19]} 34. e4 {[%emt 0:0:11]} g4 {[%emt 0:1:12]} (34... Rxa2 $6 35. Qb3 Ra1 36. Qb2 $16 )35. f4 {[%emt 0:1:26][%cal Bf3f4,Bf4f5][%mdl 32]} Rxa2 {[%emt 0:0:23]} 36. Qb1 {[%emt 0:3:37]} Ra3 {[%emt 0:0:11]} 37. f5 {[%emt 0:1:0] Wards off Qe6} (37. Qb8+ Bf8 38. f5 Qc6 )Qc6 {[%emt 0:0:29]} 38. Qb8+ {[%emt 0:0:51]} Kg7 {[%emt 0:1:12]} 39. Qe5+ {[%emt 0:0:54]} Bf6 {[%emt 0:0:18]} 40. Qf4 {[%emt 0:0:5]} h5 {[%emt 0:0:27]} (40... Ra8 $1 $11 {remains equal.} )41. h3 {[%emt 0:51:16]} (41. Rc1 $16 )gxh3+ {[%emt 0:50:55]} 42. Kh2 {[%emt 0:0:32][%cal Oe4e5] Chess con chili.} Ra1 $2 {[%emt 0:0:0]} (42... h4 $1 $11 {and Black stays safe.} 43. gxh4 Qd6 44. Qxd6 Rxd6 )43. Kxh3 $2 {[%emt 0:0:0]} ({White must play} 43. Rc1 $1 $18 {[%cal Rc1a1]} Rxc1 44. Bxc1 )Kg8 {[%emt 0:0:0]} 44. Qb8+ {[%emt 0:0:0]} Kg7 {[%emt 0:0:0]} 45. Re2 {[%emt 0:0:0]} d3 {[%emt 0:0:0]} 46. Rf2 {[%emt 0:0:0]} Bd4 $2 {[%emt 0:0:0][%mdl 8192] [#]} (46... Qd6 $11 {and Black is okay.} 47. Qxd6 Rxd6 )47. Rxd4 $1 $18 {[%emt 0:0:0]} cxd4 {[%emt 0:0:0] [#]} 48. f6+ $1 {[%emt 0:0:0]} Kh7 {[%emt 0:0:0]} 49. Qf4 {[%emt 0:0:0] Threatening mate with Qh6+.} Qe6+ {[%emt 0:0:0]} 50. Kh2 {[%emt 0:0:0] White threatens Qh6+ and mate.} Qg4 {[%emt 0:0:0]} 51. Qh6+ {[%emt 0:0:0]} Kg8 {[%emt 0:0:0][%cal Oa1a2] Strongly threatening ...Ra2!} 52. Bg5 {[%emt 0:0:0] Weighted Error Value: White=0.12 (very precise) /Black=0.31.  Loses game:     	---       	Black=2      Missed win:     	White=1     	Black=1      Mistake:       	White=1     	Black=1      Inaccurate:     	White=4     	Black=5      OK:         	White=16    	Black=15     Best:        	White=3     	Black=2      Strong:       	White=2     	---} 1-0

[Event "57th Biel Festival MTO 2024"]
[White "Lyutsinger,Iren"]
[Black "Gan-Erdene,Sugar"]
[Site "Biel"]
[Round "1.30"]
[Annotator "TA"]
[Result "0-1"]
[Date "2024.07.15"]
[WhiteElo "2069"]
[BlackElo "2424"]
[PlyCount "102"]
[TimeControl "60"]

{[%evp 12,102,15,7,25,2,2,3,4,-6,0,-7,8,11,7,0,0,0,-7,-74,-64,-161,-171,-196,-196,-201,-209,-216,-214,-206,-215,-206,-205,-203,-210,-203,-197,-195,-204,-199,-200,-220,-214,-267,-268,-383,-383,-379,-375,-437,-460,-466,-448,-449,-450,-429,-421,-571,-556,-539,-394,-391,-386,-400,-375,-370,-358,-413,-302,-294,0,-407,-373,-433,-402,-422,-420,-434,-437,-437,-429,-550,-550,-535,-526,-575,-572,-576,-471,-575,-569,-547,-532]} 1. e4 {[%emt 0:0:3]} c5 {[%emt 0:0:8]} 2. Nf3 {[%emt 0:0:8]} e6 {[%emt 0:0:17]} 3. d4 {[%emt 0:0:7]} cxd4 {[%emt 0:0:8]} 4. Nxd4 {[%emt 0:0:5]} Nc6 {[%emt 0:0:8]} 5. Nc3 {[%emt 0:0:6]} Qc7 {[%emt 0:0:12]} 6. Nxc6 {[%emt 0:0:6]} bxc6 {[%emt 0:0:12]} 7. Bd3 {[%emt 0:0:26]} Bd6 {[%emt 0:5:4][%cal Og8f6]} 8. h3 {[%emt 0:11:46]} Ne7 {[%emt 0:0:46]} 9. O-O {[%emt 0:0:58]} Ng6 {[%emt 0:0:18] The position is equal.} 10. Ne2 {[%emt 0:6:49]} O-O {[%emt 0:11:9]} 11. Be3 {[%emt 0:7:52]} c5 {[%emt 0:5:39]} 12. c4 {[%emt 0:4:27]} Bb7 {[%emt 0:0:56]} 13. f4 {[%emt 0:9:50]} f5 {[%emt 0:2:28]} 14. Qc2 {[%emt 0:0:59][%cal Re4f5]} Rae8 {[%emt 0:1:52] Black wants to play ...e5.} 15. Rae1 {[%emt 0:5:14]} (15. Rad1 $1 $11 )e5 $17 {[%emt 0:2:40][%cal Re5f4]} 16. Nc3 {[%emt 0:19:30]} (16. exf5 $15 Nh4 17. Be4 exf4 18. Bxb7 Rxe3 (18... fxe3 19. Be4 $11 )(18... Qxb7 19. Nxf4 Nxf5 20. Nd5 $11 )19. Be4 )exf4 $19 {[%emt 0:8:51]} ({Don't play} 16... Nxf4 17. Rd1 $17 )17. exf5 {[%emt 0:2:11]} Nh4 $1 {[%emt 0:18:48]} 18. Nb5 {[%emt 0:1:53]} Qc6 {[%emt 0:1:53]} 19. Nxd6 {[%emt 0:2:19]} Qxd6 {[%emt 0:0:21]} 20. Bxf4 {[%emt 0:2:16]} Qd4+ {[%emt 0:0:36]} (20... Nf3+ 21. gxf3 Qxf4 22. Be4 Bxe4 23. fxe4 $11 )21. Qf2 {[%emt 0:0:45] [#] aiming for Rxe8.} Rxe1 {[%emt 0:1:2]} ({Not} 21... Qxd3 22. Qxh4 Qxf5 23. Be5 $11 )22. Rxe1 {[%emt 0:0:30] [#] Qxd4 would now be deadly.} Qxf2+ {[%emt 0:0:5]} 23. Kxf2 {[%emt 0:0:4] And now Bd6 would win.} Nxg2 {[%emt 0:0:4]} 24. Bd6 {[%emt 0:4:35]} Nxe1 {[%emt 0:0:6]} 25. Kxe1 {[%emt 0:0:6][%mdl 4096] Endgame. KRB-KB} Rc8 {[%emt 0:0:26]} 26. Kf2 {[%emt 0:1:3]} Kf7 {[%emt 0:1:13]} 27. Ke3 {[%emt 0:0:44]} Rc6 {[%emt 0:0:33]} 28. Bb8 {[%emt 0:0:16]} (28. Bf4 $142 )Rh6 {[%emt 0:2:7]} 29. Bf1 {[%emt 0:1:19]} Ra6 {[%emt 0:0:45]} 30. a3 {[%emt 0:0:15]} d6 {[%emt 0:0:16]} 31. Bd3 {[%emt 0:1:41]} Ke7 {[%emt 0:1:39]} 32. b4 {[%emt 0:0:57]} Rxa3 {[%emt 0:0:40]} 33. bxc5 {[%emt 0:0:7]} dxc5 {[%emt 0:0:4]} 34. Be5 {[%emt 0:0:1]} Bg2 {[%emt 0:0:53] Strongly threatening ...Bf1.} 35. Kd2 {[%emt 0:0:22]} Kf7 {[%emt 0:0:54]} 36. Bd6 {[%emt 0:0:12]} Ra5 {[%emt 0:4:8]} 37. h4 {[%emt 0:0:25]} Kf6 {[%emt 0:0:25]} 38. Ke3 {[%emt 0:0:37]} Bc6 {[%emt 0:4:44]} 39. Kf4 {[%emt 0:0:44]} Ra3 {[%emt 0:1:1]} 40. Ke3 {[%emt 0:1:2]} Ra5 {[%emt 0:0:59]} 41. Kf4 $1 {[%emt 0:50:13]} Ra4 {[%emt 0:52:44]} ({Resist} 41... Ra3 42. Ke3 $19 )42. Ke3 {[%emt 0:2:1]} Bd7 {[%emt 0:0:43]} 43. Bxc5 {[%emt 0:0:44]} Bxf5 {[%emt 0:0:7]} 44. Bd4+ {[%emt 0:0:11]} Ke6 {[%emt 0:0:8] Black is clearly winning.} 45. Be2 {[%emt 0:0:48]} g6 {[%emt 0:0:29]} 46. c5 {[%emt 0:2:13]} Ra3+ {[%emt 0:0:30]} 47. Kf4 {[%emt 0:0:9]} Kd5 {[%emt 0:0:37] Prevents Bc4+.} 48. Be3 {[%emt 0:1:11]} Ra4+ {[%emt 0:2:42]} 49. Kg5 {[%emt 0:0:15]} Ke5 {[%emt 0:0:35]} 50. Bf2 {[%emt 0:0:29]} Ra2 {[%emt 0:0:32]} 51. Bg3+ {[%emt 0:0:16]} Kd5 {[%emt 0:0:13] Weighted Error Value: White=0.25 (precise) /Black=0.18 (very precise) .  Mistake:       	White=3     	---        Inaccurate:     	White=1     	---        OK:         	White=16    	Black=27     Best:        	White=5     	Black=3      Strong:       	White=1     	---} 0-1

[Event "57th Biel Festival MTO 2024"]
[White "Juksta,Karolis"]
[Black "Coles,Robin"]
[Site "Biel"]
[Round "1.31"]
[Annotator "TA"]
[Result "1-0"]
[Date "2024.07.15"]
[WhiteElo "2400"]
[BlackElo "2084"]
[PlyCount "73"]
[TimeControl "60"]

{[%evp 9,73,0,49,36,55,55,45,40,49,17,50,27,21,18,22,21,30,21,58,24,77,27,47,39,63,44,88,71,62,52,120,109,165,127,158,181,176,174,311,313,323,294,300,305,300,300,317,314,780,771,743,730,1176,1183,795,605,636,641,2237,641,634,626,572,571,571,569]} 1. d4 {[%emt 0:0:3]} d5 {[%emt 0:0:4]} 2. c4 {[%emt 0:0:14]} e6 {[%emt 0:0:3]} 3. Nc3 {[%emt 0:0:16]} Nf6 {[%emt 0:0:4]} 4. Nf3 {[%emt 0:0:25]} dxc4 {[%emt 0:0:7]} 5. e4 {[%emt 0:1:2]} b5 {[%emt 0:0:6]} 6. e5 $14 {[%emt 0:0:17]} Nd5 {[%emt 0:0:5]} 7. Nxb5 {[%emt 0:0:8]} Nb6 {[%emt 0:0:4]} 8. Be2 {[%emt 0:1:3] Weiß steht etwas besser.} Nc6 {[%emt 0:0:7]} 9. Be3 {[%emt 0:0:31]} Bb7 {[%emt 0:1:3]} 10. a3 {[%emt 0:1:21]} Qd7 {[%emt 0:2:34]} 11. Nc3 {[%emt 0:1:17]} Be7 {[%emt 0:1:34]} 12. Qc2 {[%emt 0:3:37]} Na5 {[%emt 0:2:52]} 13. Rd1 {[%emt 0:3:12]} O-O-O {[%emt 0:4:35]} 14. O-O {[%emt 0:0:22]} f5 {[%emt 0:4:20]} (14... Qc6 $1 $11 {bleibt in der Remisbreite.} )15. exf6 {[%emt 0:1:35]} (15. Nd2 $16 )gxf6 $11 {[%emt 0:0:21]} 16. Nd2 {[%emt 0:1:58]} Rhg8 {[%emt 0:6:48]} 17. Bf3 {[%emt 0:0:32]} (17. Qxh7 Rxg2+ 18. Kh1 Bd6 (18... Rxf2+ $2 19. Nf3 $19 )(18... Rg7+ $2 19. Qe4 $19 )(18... Rxh2+ $2 19. Kxh2 Bd6+ 20. f4 $19 )19. Qxd7+ Rxd7 )Nd5 {[%emt 0:3:56]} 18. Nxd5 {[%emt 0:15:32]} (18. Qxh7 $6 f5 $11 )Bxd5 {[%emt 0:6:15]} 19. g3 {[%emt 0:31:32]} (19. Qxh7 f5 20. Bxd5 Qxd5 $16 )Qc6 {[%emt 0:16:53] Weiß verwandelt nun seinen Vorteil.} (19... h5 $14 )20. Bxd5 {[%emt 0:2:24]} exd5 {[%emt 0:0:17]} (20... Qxd5 $16 {ist wohl besser.} 21. Qxh7 Rge8 )21. Bf4 {[%emt 0:12:42][%cal Ob2b3]} (21. Qxh7 $6 Qd7 $16 )Nb7 {[%emt 0:8:34]} 22. b3 {[%emt 0:7:40][%cal Rb3c4]} Bd6 {[%emt 0:4:52]} 23. bxc4 {[%emt 0:5:43] Zielt auf Be3 ab.} dxc4 {[%emt 0:6:37]} (23... Bxf4 {kämpft weiter.} 24. Qf5+ (24. Qxh7 Bxd2 25. Rxd2 dxc4 $17 )Rd7 )24. d5 {[%emt 0:2:18]} Qa6 {[%emt 0:3:33]} 25. Nxc4 {[%emt 0:1:45]} (25. Qxc4 Qxc4 (25... Qxa3 $2 {zu gefräßig.} 26. Ne4 $18 )26. Nxc4 Bxf4 $15 )Bxf4 {[%emt 0:1:27]} 26. Qf5+ {[%emt 0:0:6]} Kb8 {[%emt 0:0:30]} 27. Qxf4 {[%emt 0:0:4]} h5 {[%emt 0:1:29]} 28. Ne3 {[%emt 0:8:36] Lässt Rg4 nicht zu} Qxa3 $2 {[%emt 0:5:20] [#]} (28... Ka8 29. Qxc7 h4 )29. Ra1 $18 {[%emt 0:2:33] Weiß steht klar auf Gewinn.} Qd6 {[%emt 0:2:29]} 30. Qa4 {[%emt 0:0:32]} a6 {[%emt 0:6:16][%cal Ba7a6,Ba6a5][%mdl 32]} 31. Rfc1 {[%emt 0:3:11]} a5 {[%emt 0:1:45]} 32. Qc6 {[%emt 0:1:52]} Ka7 {[%emt 0:1:54] Schwarz ist schwach auf den weissen Feldern} 33. Rcb1 {[%emt 0:0:31]} Rb8 {[%emt 0:0:36]} 34. Rb5 {[%emt 0:0:47]} (34. Rxb7+ $142 Rxb7 35. Rxa5+ Kb8 36. Qa4 )Qxc6 {[%emt 0:3:4]} 35. dxc6 {[%emt 0:0:2][%cal Oe3d5] [#] Droht Matt per Nd5!} Rg5 {[%emt 0:0:39]} 36. Rxg5 {[%emt 0:0:31]} fxg5 {[%emt 0:0:3]} 37. cxb7 {[%emt 0:0:5] Gewichteter Fehlerwert: Weiß=0.30/Schwarz=0.29 (präzise) .  Fehler:       	Weiß=1     	Schwarz=5     Ungenau:       	Weiß=2     	Schwarz=3     OK:         	Weiß=9     	Schwarz=7     Bester:       	Weiß=2     	Schwarz=1} 1-0

[Event "57th Biel Festival MTO 2024"]
[White "Kuandykuly,Danis"]
[Black "Tahay,Alexis"]
[Site "Biel"]
[Round "1.32"]
[Annotator "RC"]
[Result "0-1"]
[Date "2024.07.15"]
[WhiteElo "1989"]
[BlackElo "2375"]
[PlyCount "156"]
[TimeControl "60"]

1. e4 {[%emt 0:0:3]} c5 {[%emt 0:0:6]} 2. Nf3 {[%emt 0:0:4]} d6 {[%emt 0:0:3]} 3. d4 {[%emt 0:0:5]} cxd4 {[%emt 0:0:3]} 4. Nxd4 {[%emt 0:0:3]} Nf6 {[%emt 0:0:10]} 5. Nc3 {[%emt 0:0:5]} Nc6 {[%emt 0:0:2]} 6. Bg5 {[%emt 0:0:38]} e6 {[%emt 0:0:5]} 7. Qd2 {[%emt 0:0:12]} Qb6 {[%emt 0:0:2]} 8. Nb3 {[%emt 0:5:27]} a6 {[%emt 0:0:15]} 9. O-O-O {[%emt 0:1:2]} Be7 {[%emt 0:0:3]} 10. f4 {[%emt 0:6:40]} O-O {[%emt 0:2:1]} 11. Be2 {[%emt 0:3:31]} Rd8 {[%emt 0:5:3]} 12. g4 {[%emt 0:4:42]} d5 {[%emt 0:5:20]} 13. e5 {[%emt 0:14:31]} Ne4 {[%emt 0:1:19]} 14. Nxe4 {[%emt 0:0:8]} dxe4 {[%emt 0:0:2]} 15. Qc3 {[%emt 0:0:9]} Bxg5 {[%emt 0:13:22]} 16. fxg5 {[%emt 0:0:7]} Bd7 {[%emt 0:0:35]} 17. Nc5 {[%emt 0:3:6]} Nb4 {[%emt 0:0:36]} 18. Kb1 {[%emt 0:9:27]} Bc6 {[%emt 0:3:10]} 19. Rd6 {[%emt 0:11:42]} Nd5 {[%emt 0:8:19]} 20. Qa3 {[%emt 0:4:56]} Nf4 {[%emt 0:12:33]} 21. Bc4 {[%emt 0:1:14]} Ng6 {[%emt 0:3:13]} 22. Rhd1 {[%emt 0:21:47]} Nxe5 {[%emt 0:2:32]} 23. Be2 {[%emt 0:4:5]} Rxd6 {[%emt 0:3:0]} 24. Rxd6 {[%emt 0:0:13]} Qc7 {[%emt 0:3:41]} 25. Nxa6 {[%emt 0:9:29]} bxa6 {[%emt 0:7:22]} 26. Qc5 {[%emt 0:0:14]} f6 {[%emt 0:0:42]} 27. gxf6 {[%emt 0:0:6]} gxf6 {[%emt 0:0:2]} 28. g5 {[%emt 0:0:14]} Rd8 {[%emt 0:2:56]} 29. Rxd8+ {[%emt 0:2:13]} Qxd8 {[%emt 0:0:1]} 30. gxf6 {[%emt 0:0:12]} Qxf6 {[%emt 0:1:41]} 31. a4 {[%emt 0:1:6]} Bxa4 {[%emt 0:3:16]} 32. Qc8+ {[%emt 0:0:40]} Kg7 {[%emt 0:0:11]} 33. Qxa6 {[%emt 0:0:35]} Bc6 {[%emt 0:2:26]} 34. Qa7+ {[%emt 0:0:20]} Nf7 {[%emt 0:2:12]} 35. Qc7 {[%emt 0:4:13]} Qf2 {[%emt 0:2:46]} 36. Bh5 {[%emt 0:0:0]} Bd5 {[%emt 0:1:2]} 37. b3 {[%emt 0:0:0]} Qf1+ {[%emt 0:2:18]} 38. Ka2 {[%emt 0:0:0]} Qf5 {[%emt 0:0:10]} 39. Bxf7 {[%emt 0:0:0]} Qxf7 {[%emt 0:0:4]} 40. Qe5+ {[%emt 0:0:0]} Qf6 {[%emt 0:0:4]} 41. Qg3+ {[%emt 0:50:17]} Kf7 {[%emt 0:51:35]} 42. c4 {[%emt 0:0:6]} Bb7 {[%emt 0:0:48]} 43. Qc7+ {[%emt 0:0:4]} Qe7 {[%emt 0:0:2]} 44. Qf4+ {[%emt 0:0:5]} Kg6 {[%emt 0:8:13]} 45. Qg4+ {[%emt 0:0:16]} Qg5 {[%emt 0:1:24]} 46. Qxe6+ {[%emt 0:0:5]} Qf6 {[%emt 0:0:1]} 47. Qg4+ {[%emt 0:0:56]} Kf7 {[%emt 0:0:36]} 48. Qd7+ {[%emt 0:1:42]} Qe7 {[%emt 0:0:0]} 49. Qf5+ {[%emt 0:0:31]} Ke8 {[%emt 0:0:40]} 50. Qb5+ {[%emt 0:0:23]} Kd8 {[%emt 0:0:2]} 51. Qb6+ {[%emt 0:0:14]} Kc8 {[%emt 0:0:6]} 52. Qe3 {[%emt 0:0:8]} Bc6 {[%emt 0:2:3]} 53. Kb2 {[%emt 0:1:46]} Qe5+ {[%emt 0:0:4]} 54. Ka3 {[%emt 0:0:14]} Qxh2 {[%emt 0:1:4]} 55. b4 {[%emt 0:0:43]} Qd6 {[%emt 0:0:35]} 56. Qh3+ {[%emt 0:0:6]} Qd7 {[%emt 0:0:4]} 57. Qh6 {[%emt 0:0:15]} Qd3+ {[%emt 0:2:0]} 58. Kb2 {[%emt 0:0:5]} Qxc4 {[%emt 0:0:9]} 59. Qxh7 {[%emt 0:0:4]} Qxb4+ {[%emt 0:0:9]} 60. Ka1 {[%emt 0:0:5]} Qa5+ {[%emt 0:0:20]} 61. Kb2 {[%emt 0:15:10]} Qb5+ {[%emt 0:15:40]} 62. Kc1 {[%emt 0:0:13]} Qc5+ {[%emt 0:0:3]} 63. Kb2 {[%emt 0:0:11]} e3 {[%emt 0:0:27]} 64. Qg8+ {[%emt 0:0:22]} Kb7 {[%emt 0:1:36]} 65. Qf7+ {[%emt 0:0:10]} Ka6 {[%emt 0:0:53]} 66. Qa2+ {[%emt 0:0:9]} Kb6 {[%emt 0:1:24]} 67. Qb3+ {[%emt 0:0:11]} Qb5 {[%emt 0:0:25]} 68. Kc1 {[%emt 0:0:9]} e2 {[%emt 0:0:49]} 69. Qg3 {[%emt 0:0:25]} Qd5 {[%emt 0:2:58]} 70. Qe1 {[%emt 0:0:49]} Bb5 {[%emt 0:0:23]} 71. Kb2 {[%emt 0:0:22]} Qd4+ {[%emt 0:0:14]} 72. Ka3 {[%emt 0:0:55]} Qe3+ {[%emt 0:2:8]} 73. Kb2 {[%emt 0:0:36]} Kc5 {[%emt 0:0:50]} 74. Ka2 {[%emt 0:0:58]} Bc4+ {[%emt 0:0:35]} 75. Kb2 {[%emt 0:0:9]} Qb3+ {[%emt 0:0:20]} 76. Kc1 {[%emt 0:0:5]} Qa3+ {[%emt 0:0:7]} 77. Kc2 {[%emt 0:0:12]} Bd3+ {[%emt 0:0:15]} 78. Kd2 {[%emt 0:0:4]} Qa5+ {[%emt 0:0:11]} 0-1

[Event "57th Biel Festival MTO 2024"]
[White "Kalogridis,Antonios"]
[Black "Tarini Goyal"]
[Site "Biel"]
[Round "1.33"]
[Annotator "TA"]
[Result "1-0"]
[Date "2024.07.15"]
[WhiteElo "2391"]
[BlackElo "2079"]
[PlyCount "145"]
[TimeControl "60"]

{[%evp 66,145,793,783,730,357,366,356,369,329,345,259,470,131,139,0,0,25,264,254,289,275,294,267,298,274,303,284,326,316,319,326,366,362,375,272,245,244,261,274,268,245,470,486,430,490,480,483,446,479,471,462,665,654,669,722,715,673,789,728,695,664,734,689,644,683,737,666,757,762,799,796,2419,2139,5085,3687,2604,2550,29997,29998,29998,29996]} 1. d4 {[%emt 0:0:14]} d5 {[%emt 0:0:11]} 2. c4 {[%emt 0:0:12]} e6 {[%emt 0:0:20]} 3. Nc3 {[%emt 0:0:13]} Nf6 {[%emt 0:0:12]} 4. cxd5 {[%emt 0:0:0]} exd5 {[%emt 0:0:8]} 5. Bg5 {[%emt 0:0:12]} Be7 {[%emt 0:0:7]} 6. e3 {[%emt 0:0:9]} c6 {[%emt 0:0:13]} 7. Bd3 {[%emt 0:0:0]} Nbd7 {[%emt 0:0:10]} 8. h3 {[%emt 0:0:16] is cutting edge theory. D35: Queen's Gambit Declined: Exchange Variation.} Nf8 {[%emt 0:0:14]} 9. Bf4 {[%emt 0:0:37]} Ne6 {[%emt 0:0:28]} 10. Be5 {[%emt 0:4:32]} Bd6 {[%emt 0:4:40]} 11. Nf3 {[%emt 0:10:38]} O-O {[%emt 0:10:44]} 12. O-O {[%emt 0:0:0]} g6 $146 {[%emt 0:4:21]} ({Predecessor:} 12... Re8 13. a3 a5 14. Rc1 g6 15. Na4 Bxe5 16. Nxe5 Nd7 17. f4 Ng7 18. Qb3 Re7 {1-0 Suarez Gomez,J (2477)-Cuenca Jimenez,J (2493) Madrid-A 2024 (5)} )13. Bxd6 {[%emt 0:0:0]} Qxd6 {[%emt 0:0:0]} 14. Ne5 {[%emt 0:2:29]} Ng7 {[%emt 0:9:43]} 15. g4 {[%emt 0:3:50]} Nd7 {[%emt 0:5:53]} 16. f4 {[%emt 0:1:24]} f6 {[%emt 0:0:7]} 17. Nf3 {[%emt 0:6:7]} b5 {[%emt 0:7:27]} 18. Qd2 {[%emt 0:9:2]} Nb6 {[%emt 0:1:6]} 19. b3 {[%emt 0:1:2]} a5 {[%emt 0:0:0]} 20. a4 b4 {[%emt 0:4:0]} 21. Nd1 {[%emt 0:7:15]} Bd7 {[%emt 0:5:14]} 22. Nf2 {[%emt 0:7:29]} Ne6 {[%emt 0:1:21]} 23. Kg2 {[%emt 0:13:7]} Rae8 {[%emt 0:1:43]} 24. Rac1 {[%emt 0:3:14]} Kh8 {[%emt 0:5:17]} 25. Rg1 {[%emt 0:11:29]} Re7 {[%emt 0:27:48]} 26. Kh1 Be8 {[%emt 0:17:17]} 27. f5 {[%emt 0:7:24]} gxf5 {[%emt 0:2:26]} 28. Bxf5 {[%emt 0:0:39]} Ng7 {[%emt 0:1:3]} 29. Bb1 {[%emt 0:2:16]} f5 {[%emt 0:0:54]} 30. Ne5 {[%emt 0:7:17]} Qh6 {[%emt 0:0:52]} 31. Rg3 {[%emt 0:5:24]} f4 {[%emt 0:4:44]} 32. exf4 {[%emt 0:0:9]} Qxf4 {[%emt 0:1:13]} 33. Rf3 {[%emt 0:0:0]} Qxf3+ {[%emt 0:0:0]} 34. Nxf3 {[%emt 0:0:0]} Rxf3 {[%emt 0:1:38]} 35. Kg2 {[%emt 0:1:17]} (35. Qh6 $142 {[%csl Gb1][%cal Rh6h7]} Ne6 36. Bf5 (36. Bxh7 Rxh7 37. Qxe6 Bd7 $18 )Rxf2 37. Qh4 (37. Bxe6 Rg7 $18 ))Rf6 {[%emt 0:2:10]} 36. Nd3 {[%emt 0:0:13]} Nd7 {[%emt 0:1:57]} 37. Nf4 {[%emt 0:0:45]} Ne6 {[%emt 0:2:31]} 38. Ne2 {[%emt 0:0:50]} Ng5 $2 {[%emt 0:0:0]} (38... Bg6 39. Bxg6 hxg6 )39. Ng3 $2 {[%emt 0:0:38]} (39. Qxg5 $18 {is more deadly.} Rxe2+ 40. Kg1 )Nf3 $16 {[%emt 0:3:34]} 40. Qc2 {[%emt 0:0:6]} ({Better is} 40. Qb2 $16 {And now Nf5 would win.} Nh4+ 41. Kh2 Nf3+ 42. Kh1 )Nh4+ $11 {[%emt 0:0:0]} 41. Kh1 {[%emt 0:13:43]} Bg6 $2 {[%emt 0:4:23]} (41... Rf3 $1 $11 {and Black is okay.} 42. Rg1 Bg6 43. Qxc6 (43. Qc1 $2 Bxb1 44. Qg5 Ng6 $19 )Bxb1 44. Qa8+ Rf8 45. Qxd5 Bd3 )42. Qd2 $18 {[%emt 0:12:37]} Nf3 {[%emt 0:0:47]} 43. Qf2 {[%emt 0:19:24]} Ng5 {[%emt 0:0:44]} 44. Nf5 {[%emt 0:1:30]} Bxf5 {[%emt 0:0:6]} 45. Bxf5 {[%emt 0:5:1]} Ne4 {[%emt 0:34:20]} 46. Qh4 Ref7 {[%emt 0:10:10]} 47. Re1 {[%emt 0:0:0]} Nf8 {[%emt 0:4:15]} 48. Kg2 {[%emt 0:0:42]} Ng6 {[%emt 0:0:0]} 49. Bxg6 {[%emt 0:0:0]} Rxg6 {[%emt 0:2:14]} 50. Rf1 {[%emt 0:0:43]} Rxf1 {[%emt 0:0:0]} 51. Kxf1 {[%emt 0:0:34]} Rf6+ {[%emt 0:0:0]} 52. Ke2 {[%emt 0:0:47]} Kg7 {[%emt 0:0:42]} 53. Ke3 {[%emt 0:0:36]} Nd6 $2 {[%emt 0:0:37]} (53... h6 54. Qe1 Ng5 )54. Qg5+ $18 {[%emt 0:0:13]} Kf7 {[%emt 0:0:0]} 55. Qh5+ Kg7 {[%emt 0:0:0]} 56. g5 Re6+ {[%emt 0:0:0]} 57. Kd3 Ne4 {[%emt 0:0:58]} 58. h4 {[%emt 0:0:10]} Nf2+ {[%emt 0:0:24]} (58... Rg6 $142 59. Qf3 h6 60. gxh6+ Rxh6 61. Qg4+ Rg6 62. Qd7+ Kh6 )59. Kc2 $18 {[%emt 0:0:5]} Ne4 {[%emt 0:0:12]} 60. Qg4 {[%emt 0:1:15]} Re7 {[%emt 0:0:0]} 61. Qc8 {[%emt 0:4:24]} Nc3 {[%emt 0:0:4]} 62. Kd3 {[%emt 0:1:7]} Rf7 {[%emt 0:0:0]} 63. Qxc6 {[%emt 0:0:17]} Rf3+ {[%emt 0:0:0]} 64. Kd2 {[%emt 0:2:7]} Ne4+ {[%emt 0:0:8]} 65. Ke2 {[%emt 0:0:15]} Rxb3 {[%emt 0:0:46]} 66. Qh6+ {[%emt 0:0:29]} (66. Qxd5 Nc3+ 67. Kf3 Nxd5+ 68. Ke4 Re3+ (68... Nc3+ 69. Kf4 Rb1 70. h5 b3 71. h6+ Kg6 72. Ke5 b2 73. Kd6 Re1 74. Kc7 b1=Q 75. d5 Nxd5+ 76. Kd6 Qc2 77. Kxd5 Rd1+ 78. Ke6 Qe4# )69. Kxd5 b3 70. Kc6 b2 71. h5 b1=Q (71... b1=B $2 72. d5 $19 )72. Kd6 Qb8+ 73. Kd7 Qb6 (73... Qb7+ 74. Kd6 Kf7 75. d5 Qb6+ 76. Kd7 Re7+ 77. Kc8 Qc7# )74. d5 Kf8 (74... Qb7+ 75. Kd6 Qb6+ 76. Kd7 Kf8 77. d6 Qb7+ 78. Kd8 Re8# )75. d6 Qb7+ 76. Kd8 Re8# )Kg8 67. Qe6+ {[%emt 0:1:16]} Kg7 {[%emt 0:1:27]} 68. h5 {[%emt 0:3:26]} (68. Qxd5 {gets mated.} Nc3+ 69. Kf3 Nxd5+ 70. Ke4 Rc3 (70... Nc3+ {is a self mate.} 71. Kf4 Rb1 72. g6 b3 73. gxh7 Rf1+ 74. Ke5 b2 75. Kd6 b1=Q 76. h8=B+ Kxh8 77. d5 Qb6+ 78. Kd7 Rf7+ 79. Ke8 Rh7 80. Kf8 Qd8# )71. Kxd5 b3 72. Ke5 b2 (72... Re3+ {leads to mate.} 73. Kf4 Re8 74. Kg4 b2 75. h5 b1=Q 76. h6+ Kg6 77. Kh3 Qd3+ 78. Kg2 Re2+ 79. Kh1 Qd1# )73. h5 b1=Q (73... b1=B $2 74. Ke6 $19 )74. h6+ Kg6 75. Kd6 Qb6+ (75... Kxg5 76. Ke6 Qe4+ 77. Kd7 Kf6 78. Kd8 Qe7# )76. Ke5 Re3+ (76... Kxg5 $2 77. Kd5 Qc6+ 78. Ke5 Re3# )77. Kd5 Kxg5 78. Kc4 Qc6# )Ng3+ {[%emt 0:0:56]} 69. Kd1 {[%emt 0:0:5]} Rd3+ {[%emt 0:0:0]} 70. Kc2 {[%emt 0:0:35]} Rc3+ {[%emt 0:0:0]} 71. Kb2 {[%emt 0:0:39]} Ne4 {[%emt 0:0:18]} 72. Qe7+ {[%emt 0:0:13]} Kg8 {[%emt 0:0:0]} 73. h6 {[%emt 0:0:0]} 1-0